Cogmind - Beta 15 @@@ ROGUE MODE // 2025.05.22 @ 01:09:41 Player: Darcyisverycute Result: Destroyed self with Mini Grenade Launcher Performance ------------- Evolutions (4) 2000 Regions Visited (11) 2200 Robots Destroyed (114) 570 Value Destroyed (4215) 4215 Prototype IDs (22) 440 Alien Tech Used (0) 0 Bonus (2241) 2241 TOTAL SCORE: 11666 Bonus ------- High Alert Combat Kills 181 Follower Combat Kills 80 Met Imprinter 300 Destroyed Z-Imprinter 1000 Triggered Deep Caves Wall 500 Exposed GOLEM Chamber 500 Friendly Fire -320 Cogmind --------- Core Integrity 0/850 Matter 99/300 Energy 10/100 System Corruption 5% Temperature Cool (0) Movement Walking (164) Ox1 Location -6/Deep Caves Parts ------- > --- POWER (1) -------- (None) > --- PROPULSION (5) --- Composite-Carbon Exoskeleton > --- UTILITY (5) ------ Armored Scrap Engine Improved Cooling System Huge Storage Unit Improved Light Armor Plating > --- WEAPON (4) ------- Mini Grenade Launcher RU-N14's Throwing Claymores Hvy. Thermal Plasma Construct/C > --- INVENTORY (25) --- High-capacity Matter Pod (157) Improved Sensor Array Advanced Signal Interpreter Advanced Terrain Scanner Zionite Light Carapace Zionite Heavy Carapace Layered Light Armor Plating Layered Light Armor Plating Bomb Factory No. 2 Zionite Phaser-S Zionite Laser-M Heavy Plasma Cannon Advanced EMP Blaster Peak State ------------ > --- POWER ------------ Light Angular Momentum Engine > --- PROPULSION ------- Composite-Carbon Exoskeleton > --- UTILITY ---------- Armored Scrap Engine Huge Storage Unit Bomb Factory No. 2 > --- WEAPON ----------- RU-N14's Throwing Claymores RU-N14's Throwing Claymores Hvy. Thermal Plasma Construct/C > --- INVENTORY -------- Light Angular Momentum Engine Improved Cooling System Zionite Biocell High-capacity Matter Pod Improved Sensor Array Advanced Signal Interpreter Advanced Terrain Scanner Zionite Light Carapace Zionite Heavy Carapace Hardened Medium Armor Plating Improved Light Armor Plating Layered Light Armor Plating Layered Light Armor Plating Hardlight Generator Lightning Gun Zionite Phaser-S Zionite Laser-M Heavy Plasma Cannon Advanced EMP Blaster Mini Grenade Launcher RU-N14's Throwing Claymores RU-N14's Throwing Claymores [Rating: 95] Favorites ----------- Power Constructs Engine Heavy Ion Engine Power Core Constructs Propulsion Constructs Treads Light Treads Leg Constructs Wheel Armored Huge Wheel Utility Huge Storage Unit Device Armored Scrap Engine Storage Huge Storage Unit Processor Advanced Terrain Scan Processor Protection Improved Light Armor Plating Weapon Constructs Energy Gun Lightning Gun Energy Cannon Advanced Beam Cannon Ballistic Gun Assault Rifle Ballistic Cannon Constructs Launcher Advanced EMP Blaster Special Weapon RU-N14's Throwing Claymores Slashing Weapon Tearclaws Build | -11 -10 -10 -10 -8 -8 -8 -6 -6 -6 -6 -6 ------- Run | Yrd Mat Min Sub Mat Sto Rec Fac Low Low Zio Dee Slots Evolved 8 | . . . . 4 . . 4 . . . . Power . | . . . . . . . . . . . . Propulsion 3 | . . . . 2 . . 1 . . . . Utility 3 | . . . . 2 . . 1 . . . . Weapon 2 | . . . . . . . 2 . . . . Parts Attached 106 | 8 4 2 8 16 10 11 16 3 4 7 17 Power 10 | 1 1 . 2 2 1 . 1 . . . 2 Engine 9 | 1 1 . 2 1 1 . 1 . . . 2 Core 1 | . . . . 1 . . . . . . . Reactor . | . . . . . . . . . . . . Propulsion 11 | 2 . . 2 2 3 2 . . . . . Treads 6 | 2 . . 2 . 2 . . . . . . Leg . | . . . . . . . . . . . . Wheel 5 | . . . . 2 1 2 . . . . . Hover . | . . . . . . . . . . . . Flight . | . . . . . . . . . . . . Utility 42 | 2 1 1 1 5 1 6 9 1 2 3 10 Device 21 | 1 . 1 1 1 1 3 4 1 2 2 4 Storage 8 | 1 1 . . 3 . . 2 . . . 1 Processor 4 | . . . . 1 . 2 1 . . . . Hackware . | . . . . . . . . . . . . Protection 9 | . . . . . . 1 2 . . 1 5 Artifact . | . . . . . . . . . . . . Weapon 43 | 3 2 1 3 7 5 3 6 2 2 4 5 Energy Gun 16 | 2 . . 1 . 3 3 2 1 . 2 2 Energy Cannon 4 | . 1 . . 1 . . 1 1 . . . Ballistic Gun 7 | 1 1 . 2 2 . . 1 . . . . Ballistic Cannon 5 | . . . . 2 1 . 2 . . . . Launcher 6 | . . 1 . 2 1 . . . 1 1 . Special Weapon 4 | . . . . . . . . . . 1 3 Impact Weapon . | . . . . . . . . . . . . Slashing Weapon 1 | . . . . . . . . . 1 . . Piercing Weapon . | . . . . . . . . . . . . Special Melee Weapon . | . . . . . . . . . . . . Unidentified Prototypes 17 | . 1 . . 2 2 1 . . . 2 9 Parts Lost 19 | . . . 2 . 3 1 3 . 3 . 7 Power 7 | . . . 2 . 1 . 1 . . . 3 Propulsion 3 | . . . . . 2 . 1 . . . . Utility 6 | . . . . . . 1 1 . 1 . 3 Weapon 3 | . . . . . . . . . 2 . 1 Highest Loss Streak 3 | . . . 1 . 3 1 2 . 2 . 3 To Critical Strikes 1 | . . . . . . . . . . . 1 Average Backups 20 | 1 9 14 14 13 20 22 22 23 22 23 21 Power . | . 1 2 1 . . . . . . . . Propulsion . | . . . . 1 1 1 . . . . . Utility 12 | . 1 3 4 4 12 12 16 15 15 16 12 Weapon 6 | . 6 9 9 6 5 7 5 7 5 6 8 Tool/Special . | . . . . . . . . . . . . Unused Backups 48 | . 3 3 2 4 . 4 7 4 4 6 11 Power 2 | . 1 . . . . . . . . . 1 Propulsion 9 | . . . . . . 4 2 . 2 1 . Utility 21 | . 1 1 . . . . 3 2 2 4 8 Weapon 15 | . 1 2 2 4 . . 1 2 . 1 2 Tool/Special 1 | . . . . . . . 1 . . . . Average Slot Usage (%) 64 | . 100 100 99 78 85 63 59 59 52 55 54 Engine 7 | . 14 14 13 8 9 9 5 5 6 6 3 Treads 6 | . 28 28 28 2 9 6 . . . 4 2 Leg 2 | . . . . . . . 1 6 5 1 3 Wheel 2 | . . . . 15 12 8 . . . . . Device 15 | . 14 14 14 17 18 16 15 19 19 16 12 Storage 7 | . 14 14 14 9 9 9 6 6 6 6 6 Protection 1 | . . . . . . . 1 . . 2 2 Energy Gun 4 | . 1 . 9 1 1 5 10 3 . 2 4 Energy Cannon 4 | . 12 12 10 3 . . 4 9 7 6 2 Ballistic Gun 2 | . 14 14 7 8 . 1 . . . . . Ballistic Cannon 2 | . . . . 4 13 4 4 5 . . 3 Launcher 2 | . . 1 . . 2 . . . 4 4 4 Peak Build Rating 95 | 9 14 14 18 44 45 56 78 67 68 83 95 Average Rating 56 | 5 12 13 16 36 39 45 66 63 63 73 82 On Entrance 38 | . 9 14 13 15 44 39 53 65 63 66 78 Naked Turns . | . . . . . . . . . . . . Heaviest Build 153 | 14 34 34 36 102 106 121 119 113 113 140 153 Greatest Support 148 | 40 40 40 40 56 56 72 90 49 90 148 148 Greatest Overweight (x) 5 | . . . . 1 3 5 2 2 2 1 1 Average Overweight (x) . | . . . . . 2 2 1 2 1 . . Largest Inventory Capacity 25 | 8 15 15 15 25 25 25 25 25 25 25 25 Average Capacity 22 | 7 10 15 15 16 25 25 25 25 25 25 25 Most Carried 25 | 3 15 15 15 21 24 25 25 25 25 25 25 Average Carried 21 | 1 9 14 14 15 21 23 23 24 23 24 22 Final Capacity 25 | 8 15 15 15 25 25 25 25 25 25 25 25 Final Carried 25 | 3 15 15 14 21 24 22 24 25 25 25 15 Scrap Engine Consumption 98 | . . . . . . 39 23 7 22 3 4 Constructs Created 3 | . . . . . . 2 . 1 . . . Constructs Modified 42 | . . . . . . 15 8 4 8 1 6 Class Distribution -------------------- 71% | Construct 28% | Mutant Dominant Class ---------------- Mutant | -10/Materials Mutant | -10/Mines Mutant | -10/Subcaves Mutant | -8/Materials Mutant | -8/Storage Construct | -8/Recycling Construct | -6/Factory Construct | -6/Lower Caves Construct | -6/Lower Caves Construct | -6/Zion Construct | -6/Deep Caves Resources | -11 -10 -10 -10 -8 -8 -8 -6 -6 -6 -6 -6 ----------- Run | Yrd Mat Min Sub Mat Sto Rec Fac Low Low Zio Dee Matter Collected 4741 | 310 309 66 220 408 371 777 324 205 361 110 1280 Remotely . | . . . . . . . . . . . . Salvage Created 5863 | 110 633 29 325 644 1194 312 588 77 996 158 797 Parts 255 | 5 40 9 13 28 53 21 22 3 33 1 27 Haulers Intercepted 4 | . 2 . . 1 1 . . . . . . Recyclers Shooed 4 | . 2 . . . . . 2 . . . . Parts Field Recycled . | . . . . . . . . . . . . Retrieved Matter . | . . . . . . . . . . . . Parts Self-Destructed 16 | . . . 5 . . . . 3 6 2 . Prevented 23 | . . . . . . . . . 23 . . Kills | -11 -10 -10 -10 -8 -8 -8 -6 -6 -6 -6 -6 ------- Run | Yrd Mat Min Sub Mat Sto Rec Fac Low Low Zio Dee Combat Hostiles Destroyed 123 | . 8 3 5 13 21 6 8 1 12 . 46 Guns 19 | . 2 . 3 5 . 5 3 . . . 1 Cannons 37 | . 6 . 2 7 8 1 3 1 2 . 7 AOE 54 | . . 3 . . 11 . . . 5 . 35 Classes Destroyed 22 | 2 6 . 4 2 3 . 1 . 1 . 3 Builder 5 | . 2 . . . 1 . 2 . . . . Tunneler 3 | 2 . 1 . . . . . . . . . Hauler 4 | . 2 . . 1 1 . . . . . . Recycler 7 | 1 2 . . . 3 . 1 . . . . Operator 2 | . 2 . . . . . . . . . . Watcher 4 | . 2 . . 1 . . 1 . . . . Swarmer 9 | . 2 3 . . 3 . . . 1 . . Grunt 29 | . 6 . . 9 9 . . . 5 . . Brawler 6 | . . . . . 3 . . . 3 . . Duelist 3 | . . . . . 2 . . . 1 . . Protector 2 | . . . . . 1 . . . 1 . . Sentry 11 | . . . . 3 2 2 3 . 1 . . Hunter 6 | . . . . 1 1 . 4 . . . . Programmer 2 | . . . . . . . 1 1 . . . Artisan 1 | . . . 1 . . . . . . . . Cobbler 1 | . . . 1 . . . . . . . . Subdweller 9 | . . . 5 . . 4 . . . . . Zionite 1 | . . . 1 . . . . . . . . Z-Light 9 | . . . . . . . . . . . 9 Samaritan 1 | . . . . . . . . . 1 . . Assembler 1 | . . . . . . . . . . . 1 Assembled 37 | . . . . . . . . . . . 37 Savage 1 | . . . . . . . . . 1 . . Best Kill Streak 34 | 3 4 3 2 6 8 2 3 1 7 . 34 Combat Bots Only 33 | . 2 3 2 6 7 2 3 1 7 . 33 Max Kills in Single Turn 24 | 1 1 2 1 1 3 1 2 1 2 . 24 Gunslinging . | . . . . . . . . . . . . Exploded 22 | . . 2 . . 2 . . . 2 . 22 Melee . | . . . . . . . . . . . . Uniques/NPCs Destroyed 1 | . . . . . . . . . . . 1 Z-Imprinter (-6/Deep Caves) Combat | -11 -10 -10 -10 -8 -8 -8 -6 -6 -6 -6 -6 -------- Run | Yrd Mat Min Sub Mat Sto Rec Fac Low Low Zio Dee Hostile Shots Fired 625 | . 31 5 43 75 54 39 194 2 32 . 150 Missed 185 | . 8 2 7 17 21 11 64 . 10 . 45 Hits 440 | . 23 3 36 58 33 28 130 2 22 . 105 Melee 19 | . . . . . 5 . . . 5 . 9 Projectile 421 | . 23 3 36 58 28 28 130 2 17 . 96 Critical Strikes 15 | . . . 1 6 . 2 1 . 4 . 1 Damage Taken 8339 | . 232 69 777 934 654 390 1602 29 571 . 3081 Core 1263 | . 31 . 170 122 66 22 153 . 75 . 624 Absorbed by Shields 364 | . . . . . 68 108 56 . . . 132 Regen/Repaired (Parts) 1542 | . . . . . . 73 329 220 360 . 560 Core Remaining (%) 60 | 100 . . 19 . . 61 . . . . . Volleys Fired 410 | 10 42 4 37 56 37 26 59 3 52 13 71 Largest 4 | 2 2 2 2 2 2 2 4 4 2 1 3 Hottest 296 | 60 88 88 128 136 80 100 296 245 198 162 217 Shots Fired 728 | 20 84 6 73 111 67 49 135 7 59 13 104 Gun 287 | 20 45 2 50 51 3 38 51 1 . . 26 Cannon 369 | . 39 2 23 60 44 11 84 6 44 13 43 Launcher 59 | . . 2 . . 20 . . . 15 . 22 Special 13 | . . . . . . . . . . . 13 Kinetic 258 | 10 42 2 20 65 44 11 61 3 . . . Thermal 341 | 10 42 2 53 46 3 8 73 4 44 13 43 Explosive 18 | . . 2 . . . . . . . . 16 Electromagnetic 111 | . . . . . 20 30 1 . 15 . 45 Robot Hit Streak 19 | 7 7 5 6 16 8 15 19 3 16 . 7 Robot Miss Streak 9 | 3 8 2 3 3 6 4 9 1 2 . 6 Penetration Max . | . . . . . . . . . . . . Secondary Targets 3 | . . . . 3 . . . . . . . Max Gunslinging Chain 1 | . . . . 1 . . . . . . . Shots Hit Robots 363 | 13 39 3 47 77 34 34 58 3 24 5 26 Core Hits 235 | 4 22 5 16 25 35 14 20 2 26 2 64 Critical Kills 1 | . . . . 1 . . . . . . . Critical Parts Destroyed 1 | . 1 . . . . . . . . . . Critical Strikes 6 | . 1 . . 1 1 . 3 . . . . Burn 1 | . . . . . . . 1 . . . . Meltdown 1 | . . . . 1 . . . . . . . Destroy 1 | . 1 . . . . . . . . . . Blast 3 | . . . . . 1 . 2 . . . . Melee Attacks 6 | . . . . . . . . . 1 5 . Impact . | . . . . . . . . . . . . Slashing 6 | . . . . . . . . . 1 5 . Piercing . | . . . . . . . . . . . . Sneak Attacks . | . . . . . . . . . . . . Combat Hostiles . | . . . . . . . . . . . . Follow-up Attacks . | . . . . . . . . . . . . Damage Inflicted 15542 | 148 633 173 974 1614 2195 645 1537 129 1932 118 5444 Guns 2945 | 148 244 . 647 577 15 561 614 . . . 139 Cannons 4713 | . 389 20 327 1037 692 58 911 129 863 . 287 Explosions 7362 | . . 153 . . 1488 26 . . 1039 . 4656 Melee 148 | . . . . . . . . . 30 118 . Ramming 12 | . . . . . . . 12 . . . . Kinetic 3036 | 71 212 . 227 897 692 58 849 30 . . . Thermal 4364 | 77 421 20 747 717 79 150 657 99 972 . 425 Explosive 3995 | . . 153 . . 129 . . . . . 3713 Electromagnetic 3625 | . . . . . 1295 437 19 . 930 . 944 Impact . | . . . . . . . . . . . . Slashing 510 | . . . . . . . . . 30 118 362 Piercing . | . . . . . . . . . . . . Highest Corruption 6 | . 4 4 4 . 6 6 3 3 4 . 5 Average Corruption 4 | . 3 4 4 . 5 6 2 3 3 . 4 Corruption Purged 4 | . . . . . . . . . 4 . . Corruption Blocked . | . . . . . . . . . . . . Effects 177 | . 8 10 22 . 6 85 2 9 32 . 3 Message Errors 40 | . 2 2 6 . 1 18 . 1 8 . 2 Matter Fused 48 | . 2 6 6 . 2 19 . 4 9 . . Heat Flow Errors 18 | . . . 1 . 1 10 . 2 3 . 1 Energy Discharges 20 | . 1 2 3 . . 10 . 1 3 . . Parts Rejected 1 | . . . . . . . 1 . . . . Data Loss (minor) 24 | . 1 . . . 1 19 . . 3 . . Data Loss (major) 11 | . 1 . 1 . . 4 1 . 4 . . Misfires 6 | . . . 1 . 1 2 . 1 1 . . Alerts 7 | . 1 . 3 . . 2 . . 1 . . Weapon Failures 2 | . . . 1 . . 1 . . . . . Overload Shots . | . . . . . . . . . . . . Overflow Damage 333 | . 11 15 . . 47 . 3 14 29 31 183 Projectiles 98 | . 11 . . . . . 3 14 21 . 49 Explosions 204 | . . 15 . . 47 . . . 8 . 134 Melee 31 | . . . . . . . . . . 31 . Knockbacks 8 | . . . . 1 1 1 5 . . . . Impact . | . . . . . . . . . . . . Kinetic 7 | . . . . 1 1 1 4 . . . . Secondary 1 | . . . . . . . 1 . . . . Self-Inflicted Damage 383 | . . 47 . . 186 . 45 . 65 . 40 Shots 17 | . . 2 . . 9 . 1 . 3 . 2 Rammed 2 | . . . . . . . 2 . . . . Targets Rammed 2 | . . . . . . . 2 . . . . Kicked . | . . . . . . . . . . . . Crushed . | . . . . . . . . . . . . Highest Temperature 398 | . 210 60 250 234 163 238 398 215 240 106 382 Average Temperature 77 | . 65 31 51 87 30 67 113 83 77 53 117 Received Heat Transfer 1968 | . 90 . 459 468 100 83 109 . 184 . 475 Effects 4 | . . . . . . . 4 . . . . Shutdowns 1 | . . . . . . . 1 . . . . Interference 3 | . . . . . . . 3 . . . . Siege Activations . | . . . . . . . . . . . . Martial Activations . | . . . . . . . . . . . . Shielding Activations . | . . . . . . . . . . . . Robots Disrupted . | . . . . . . . . . . . . Combat Hostiles . | . . . . . . . . . . . . Robots Corrupted 9 | . . . . . 2 . . . 5 . 2 Combat Hostiles 9 | . . . . . 2 . . . 5 . 2 Parts Fried 32 | . . . . . 4 7 . . 8 . 13 Impact Corruptions . | . . . . . . . . . . . . Robots Melted 4 | . . . . 1 . . 2 . . . 1 Combat Hostiles 4 | . . . . 1 . . 2 . . . 1 Parts Melted 11 | . 1 . . 3 . . 4 . 2 . 1 Heat Transferred 6606 | 175 778 37 1117 1295 137 309 1350 100 910 . 398 Parts Sabotaged . | . . . . . . . . . . . . Parts Stolen . | . . . . . . . . . . . . Parts Stripped . | . . . . . . . . . . . . Power Chain Reactions 10 | . . . . . 6 1 . . 2 . 1 Alert | -11 -10 -10 -10 -8 -8 -8 -6 -6 -6 -6 -6 ------- Run | Yrd Mat Min Sub Mat Sto Rec Fac Low Low Zio Dee Maximum Alert Level 3 | . . . . . 3 1 1 . . . . Low Security (%) 82 | 100 100 100 . 100 39 94 8 . . . . Level 1 14 | . . . . . 2 5 91 . . . . Level 2 1 | . . . . . 26 . . . . . . Level 3 1 | . . . . . 31 . . . . . . Level 4 . | . . . . . . . . . . . . Level 5 . | . . . . . . . . . . . . High Security . | . . . . . . . . . . . . Max Security . | . . . . . . . . . . . . Peak Influence 750 | 10 57 99 . 177 750 273 262 . . . . Initial 273 | . . 14 . . 59 273 250 . . . . Average 83 | 1 14 26 . 105 426 37 223 . . . . Influence Increases 2769 | 15 273 90 . 382 854 214 633 30 263 15 . Destroy 0b10 Robot/C 1340 | . 160 60 . 260 400 40 160 20 240 . . Destroy 0b10 Robot/NC 155 | 15 50 5 . 10 30 . 20 . 10 15 . Destroy Leader 286 | . 48 10 . 74 72 . 62 10 10 . . Allied During Kill 3 | . . . . . . . . . 3 . . Successful Hack 132 | . . . . 17 9 21 85 . . . . Select Force Hacks 120 | . . . . . . 120 . . . . . Disable Machine 165 | . 15 15 . 15 75 30 15 . . . . Anti-Garrison Action 150 | . . . . . 150 . . . . . . Destroy Structure 93 | . . . . 6 43 3 41 . . . . Advance Influence 250 | . . . . . . . 250 . . . . Lose Combat Pursuer 75 | . . . . . 75 . . . . . . Influence Decreases 2769 | 15 235 128 . 239 294 917 420 243 263 15 . Entered New Map 617 | . . 24 . . 84 430 . 79 . . . Time Decay 2062 | 15 235 104 . 239 180 487 380 164 243 15 . Lost Part 80 | . . . . . 30 . 30 . 20 . . Lost Ally 10 | . . . . . . . 10 . . . . Squads Dispatched 13 | . 2 . . 1 6 . 3 . 1 . . Investigation 2 | . . . . . 1 . 1 . . . . Extermination 2 | . . . . . . . 2 . . . . Reinforcement 4 | . 2 . . 1 1 . . . . . . Assault 3 | . . . . . 2 . . . 1 . . Garrison 2 | . . . . . 2 . . . . . . Intercept . | . . . . . . . . . . . . Searches Triggered . | . . . . . . . . . . . . Construction Impeded . | . . . . . . . . . . . . Haulers Reinforced . | . . . . . . . . . . . . Active Scanning Responses . | . . . . . . . . . . . . Cargo Convoy Interrupts . | . . . . . . . . . . . . Stealth | -11 -10 -10 -10 -8 -8 -8 -6 -6 -6 -6 -6 --------- Run | Yrd Mat Min Sub Mat Sto Rec Fac Low Low Zio Dee Distress Signals 8 | . 3 . . 1 1 2 1 . . . . Communications Jammed . | . . . . . . . . . . . . Distress Signals . | . . . . . . . . . . . . Times Spotted 158 | . 16 3 7 20 25 10 13 1 13 . 50 Peak Tracking Total 37 | . 4 3 2 7 8 2 3 1 7 . 37 Tactical Retreats 10 | . . . . . 4 4 . . . . 2 Traps | -11 -10 -10 -10 -8 -8 -8 -6 -6 -6 -6 -6 ------- Run | Yrd Mat Min Sub Mat Sto Rec Fac Low Low Zio Dee Traps Triggered 4 | . 2 . . . 2 . . . . . . Indirectly 1 | . . . . . 1 . . . . . . Trap Hack Attempts . | . . . . . . . . . . . . Triggered . | . . . . . . . . . . . . Disarmed . | . . . . . . . . . . . . Reprogrammed . | . . . . . . . . . . . . Reused 3 | . . . . . . . . . . . 3 Traps Extracted . | . . . . . . . . . . . . Installed 12 | . . . . . . . . . . . 12 Triggered . | . . . . . . . . . . . . Fabricated Traps 12 | . . . . . . . . . . . 12 Most Traps Carried 3 | . . . . . . . . . . . 3 Machines | -11 -10 -10 -10 -8 -8 -8 -6 -6 -6 -6 -6 ---------- Run | Yrd Mat Min Sub Mat Sto Rec Fac Low Low Zio Dee Machines Disabled 18 | . 1 1 . 1 6 2 1 . . 3 3 Max in Single Turn 2 | . 1 1 . 1 2 1 1 . . 1 1 Garrison Access 1 | . . . . . 1 . . . . . . Machines Repaired . | . . . . . . . . . . . . Machines Dismantled . | . . . . . . . . . . . . Machines Sabotaged . | . . . . . . . . . . . . Overloaded Fab Kills . | . . . . . . . . . . . . Hacking | -11 -10 -10 -10 -8 -8 -8 -6 -6 -6 -6 -6 --------- Run | Yrd Mat Min Sub Mat Sto Rec Fac Low Low Zio Dee Machines Accessed 26 | . 1 . . 3 5 10 5 . 2 . . Terminals 14 | . 1 . . 3 4 4 2 . . . . Fabricators 2 | . . . . . . . 2 . . . . Repair Stations . | . . . . . . . . . . . . Recycling Units 4 | . . . . . . 4 . . . . . Scanalyzers 1 | . . . . . . . 1 . . . . Garrison Access 1 | . . . . . 1 . . . . . . Total Hacks 64 | . 1 . . 10 11 29 11 . 2 . . Successful 35 | . . . . 5 4 17 7 . 2 . . Failed 29 | . 1 . . 5 7 12 4 . . . . Catastrophic 3 | . 1 . . . 1 1 . . . . . Database Lockouts . | . . . . . . . . . . . . Manual 37 | . 1 . . 6 1 24 4 . . 1 . Terminals 42 | . 1 . . 10 9 19 3 . . . . Fabricators 6 | . . . . . . . 6 . . . . Repair Stations . | . . . . . . . . . . . . Recycling Units 5 | . . . . . . 5 . . . . . Scanalyzers 2 | . . . . . . . 2 . . . . Garrison Access 2 | . . . . . 2 . . . . . . Terminal Hacks 19 | . . . . 3 4 9 1 . 2 . . Record 4 | . . . . . . 3 . . 1 . . Robot Analysis 4 | . . . . . . 4 . . . . . Open Door 3 | . . . . . 2 . . . 1 . . Branch Access Points 2 | . . . . 1 . . 1 . . . . Alert Level 1 | . . . . . 1 . . . . . . Locate Traps 2 | . . . . 2 . . . . . . . Zone Layout 1 | . . . . . 1 . . . . . . Release Object 2 | . . . . . . 2 . . . . . Fabricator Hacks 1 | . . . . . . . 1 . . . . Load Schematic 1 | . . . . . . . 1 . . . . Repair Station Hacks . | . . . . . . . . . . . . Recycling Unit Hacks . | . . . . . . . . . . . . Scanalyzer 2 | . . . . . . . 2 . . . . Insert Component 1 | . . . . . . . 1 . . . . Analyze 1 | . . . . . . . 1 . . . . Garrison Access Hacks . | . . . . . . . . . . . . Unauthorized Hacks 13 | . . . . 2 . 8 3 . . . . Terminals 7 | . . . . 2 . 4 1 . . . . Assimilate 2 | . . . . 1 . . 1 . . . . Botnet 3 | . . . . 1 . 2 . . . . . Skim 2 | . . . . . . 2 . . . . . Fabricators 2 | . . . . . . . 2 . . . . Prioritize 1 | . . . . . . . 1 . . . . Fabnet 1 | . . . . . . . 1 . . . . Repair Stations . | . . . . . . . . . . . . Recycling Units 4 | . . . . . . 4 . . . . . Tunnel 4 | . . . . . . 4 . . . . . Scanalyzers . | . . . . . . . . . . . . Garrison Access . | . . . . . . . . . . . . Data Cores Recovered . | . . . . . . . . . . . . Used . | . . . . . . . . . . . . Hacking Detections 15 | . 1 . . 3 4 3 4 . . . . Full Trace Events 4 | . . . . . 2 1 1 . . . . Feedback Events . | . . . . . . . . . . . . Feedback Blocked . | . . . . . . . . . . . . Robot Schematics Acquired 2 | . . . . . . . . . . 2 . Robots Built . | . . . . . . . . . . . . Authchips . | . . . . . . . . . . . . Time . | . . . . . . . . . . . . Total Robot Build Rating . | . . . . . . . . . . . . Part Schematics Acquired 16 | . . . . . . . 1 . . 15 . Parts Built . | . . . . . . . . . . . . Authchips . | . . . . . . . . . . . . Time . | . . . . . . . . . . . . Total Part Build Rating . | . . . . . . . . . . . . Parts Repaired . | . . . . . . . . . . . . Time . | . . . . . . . . . . . . Parts Recycled . | . . . . . . . . . . . . Recycled Matter . | . . . . . . . . . . . . Retrieved Matter . | . . . . . . . . . . . . Retrieved Components . | . . . . . . . . . . . . Parts Scanalyzed 1 | . . . . . . . 1 . . . . Part Schematics Acquired 1 | . . . . . . . 1 . . . . Parts Damaged . | . . . . . . . . . . . . Bothacking | -11 -10 -10 -10 -8 -8 -8 -6 -6 -6 -6 -6 ------------ Run | Yrd Mat Min Sub Mat Sto Rec Fac Low Low Zio Dee Used RIF Installer . | . . . . . . . . . . . . Robots Hacked . | . . . . . . . . . . . . Non-combat . | . . . . . . . . . . . . Combat . | . . . . . . . . . . . . Robot Hacks Applied . | . . . . . . . . . . . . Relay Couplers Released 4 | . . . . . 4 . . . . . . Machine Destruction 4 | . . . . . 4 . . . . . . Fabnet Peak Effective % . | . . . . . . . . . . . . Robots Rewired 2 | . . . . . . . . . 2 . . Allies Hacked . | . . . . . . . . . . . . Hacks Repelled . | . . . . . . . . . . . . Allies | -11 -10 -10 -10 -8 -8 -8 -6 -6 -6 -6 -6 -------- Run | Yrd Mat Min Sub Mat Sto Rec Fac Low Low Zio Dee Total Allies 5 | . . 2 . . . . 1 . 2 . . Largest Group 2 | . . 2 2 . . . 1 . 2 2 2 Highest-Rated Group 58 | . . 42 42 . . . 26 . 58 58 58 Highest-Rated Ally 31 | . . 31 31 . . . 26 . 29 29 29 Total Orders . | . . . . . . . . . . . . Ally Attacks 66 | . . . 16 . . . . . 3 . 47 Total Damage 629 | . . . 230 . . . . . 36 . 363 Kills 4 | . . . 2 . . . . . 1 . 1 Allies Corrupted . | . . . . . . . . . . . . Allies Melted . | . . . . . . . . . . . . Intel | -11 -10 -10 -10 -8 -8 -8 -6 -6 -6 -6 -6 ------- Run | Yrd Mat Min Sub Mat Sto Rec Fac Low Low Zio Dee Active Infowar (turns) 6965 | 32 953 395 825 575 373 116 338 682 1338 1166 172 Sensors 340 | . . . . . . . 168 . . . 172 Terrain 2155 | 32 953 193 686 239 . . 52 . . . . Structural 2555 | . . . . . . 2 118 . 1269 1166 . Seismic 2308 | . . 202 139 406 373 114 . 682 392 . . Robot Analysis Total 4 | . . . . . . 4 . . . . . Derelict Logs Recovered 8 | . . 1 . . . . . 2 3 2 . Drone Launches . | . . . . . . . . . . . . Drone Recoveries . | . . . . . . . . . . . . Exploration | -11 -10 -10 -10 -8 -8 -8 -6 -6 -6 -6 -6 ------------- Run | Yrd Mat Min Sub Mat Sto Rec Fac Low Low Zio Dee Turns Passed 16250 | 129 953 395 883 575 373 3564 880 731 1942 2276 3549 Spaces Moved 8180 | 54 489 233 447 289 168 1721 434 374 637 1405 1929 Core 2 | 2 . . . . . . . . . . . Treads 3642 | 52 489 233 447 37 . 412 26 . 51 1085 810 Legs 2477 | . . . . . . . 78 374 586 320 1119 Wheels 1507 | . . . . 252 168 1087 . . . . . Hover 221 | . . . . . . 52 169 . . . . Flight 331 | . . . . . . 170 161 . . . . Fastest Speed 50 | 50 160 160 160 100 115 124 124 180 180 141 141 Average Speed 162 | 155 160 160 160 110 130 171 144 188 218 153 155 Slowest Speed 402 | 160 160 160 160 160 145 402 195 195 305 196 196 Overloaded Moves . | . . . . . . . . . . . . Propulsion Burnouts . | . . . . . . . . . . . . Robots Hopped . | . . . . . . . . . . . . Potential Cave-ins 2 | . . . . . . . . . 2 . . Cave-ins Triggered . | . . . . . . . . . . . . Exploration Rate (%) 51 | 5 67 49 31 22 40 94 13 58 72 89 80 Regions Visited 11 Branch Regions 8 Pre-discovered Areas 5 | . . . . . . 4 . . . 1 . Known Exits Taken 3 | . . . . 1 . . 1 . 1 . . Unknown Exits Taken 8 | 1 1 1 1 . 1 1 . 1 . 1 . Scrap Searched 9 | . . 1 . . . . . 2 3 3 . Spaces Dug 76 | . . . . . 1 1 22 . 23 . 29 Terrain Destroyed 247 | . . . . 3 42 3 53 3 31 . 112 Melee . | . . . . . . . . . . . . Projectile 124 | . . . . 3 12 2 39 3 27 . 38 AOE 123 | . . . . . 30 1 14 . 4 . 74 Terrain Rammed . | . . . . . . . . . . . . Walls Destroyed . | . . . . . . . . . . . . Machines Disabled . | . . . . . . . . . . . . Actions | -11 -10 -10 -10 -8 -8 -8 -6 -6 -6 -6 -6 --------- Run | Yrd Mat Min Sub Mat Sto Rec Fac Low Low Zio Dee Total 10438 | 75 580 249 541 434 252 2293 583 402 1131 1507 2391 Wait 1362 | 1 18 4 41 28 19 490 33 7 403 43 275 Move 8169 | 53 488 232 446 288 167 1720 433 373 636 1404 1929 Hop . | . . . . . . . . . . . . Pick Up 121 | 2 17 3 2 16 10 13 17 5 10 12 14 Fast Attach 46 | 8 2 . 1 5 1 6 6 1 3 3 10 Attach 51 | . . . 2 2 3 5 5 1 4 7 22 Detach 34 | 1 2 . . 1 . 8 2 2 2 1 15 Swap 73 | . 2 3 7 19 12 3 12 1 6 2 6 Drop 146 | . 9 3 5 19 3 21 14 9 9 17 37 Fire 410 | 10 42 4 37 56 37 26 59 3 52 13 71 Melee 6 | . . . . . . . . . 1 5 . Ram 2 | . . . . . . . 2 . . . . Kick . | . . . . . . . . . . . . Crush . | . . . . . . . . . . . . Escape Stasis . | . . . . . . . . . . . . Rewire 5 | . . . . . . . . . 5 . . Trap 12 | . . . . . . . . . . . 12 Miscellaneous 1 | . . . . . . 1 . . . . . Route ------- -11/Scrapyard -10/Materials (discovered 4 exits: [*Mat x3] / [*Min]) -10/Mines -10/Subcaves -8/Materials (discovered 3 exits: [*Fac] / *Sto x2) -8/Storage -8/Recycling -6/Factory (discovered 2 exits: *Low x2) -6/Lower Caves -6/Lower Caves (discovered 2 exits: [*Fac] / *Zio) -6/Zion (discovered 2 exits: [*Dee] / [*Pro]) -6/Deep Caves History --------- Turn | Location | Event 21 | -11/Scrapyard | Discovered new exit (range 15) 130 | -11/Scrapyard | Entered Materials 317 | -10/Materials | Build established: Mutant 477 | -10/Materials | Discovered new exit (range 4) 898 | -10/Materials | Discovered new exit (range 3) 983 | -10/Materials | Discovered new exit (range 10) 1036 | -10/Materials | Discovered new exit (range 14) 1083 | -10/Materials | Entered Mines 1273 | -10/Mines | Found a damaged Exp. Sensor Array with a note attached 1278 | -10/Mines | Found Prototype Device 1440 | -10/Mines | Received a Rocket Launcher from a helpful Derelict 1457 | -10/Mines | Discovered new exit (range 12) 1478 | -10/Mines | Entered Subcaves 1478 | -10/Subcaves | Accompanied by 2 allies 1483 | -10/Subcaves | Led the pair of lost Derelicts to an unsafe place 1588 | -10/Subcaves | Ambushed by Subdwellers from Twisted Machinery 1762 | -10/Subcaves | Shifting Twisted Machinery released Spk. Treads 1764 | -10/Subcaves | Shifting Twisted Machinery released Sub. Laser 2110 | -10/Subcaves | Core integrity fell below 50% 2305 | -10/Subcaves | Core integrity fell below 20% 2348 | -10/Subcaves | Discovered new exit (range 8) 2361 | -10/Subcaves | Entered Materials 2361 | -8/Materials | Evolved 4 slots: Propulsion x2, Utility x2 2362 | -8/Materials | Identified exit to Storage 2836 | -8/Materials | Discovered new exit (range 8) 2936 | -8/Materials | Entered Storage 2978 | -8/Storage | Garrison activated, responded to threat 3121 | -8/Storage | Lost 3 parts (1p2n) 3172 | -8/Storage | Destroyed 7 combat bots 3208 | -8/Storage | Discovered new exit (range 10) 3243 | -8/Storage | Used back door to open Recycling access 3309 | -8/Storage | Entered Recycling 3821 | -8/Recycling | Found Prototype Device 3821 | -8/Recycling | Identified Scrap Engine 3833 | -8/Recycling | Entered Scraplab 4741 | -8/Recycling | Discovered new exit (range 13) 4998 | -8/Recycling | Build established: Construct 6873 | -8/Recycling | Entered Factory 6873 | -6/Factory | Evolved 4 slots: Propulsion x1, Utility x1, Weapon x2 7126 | -6/Factory | Identified exit to Lower Caves 7151 | -6/Factory | Identified Exp. Sensor Array 7753 | -6/Factory | Entered Lower Caves 7838 | -6/Lower Caves | Learned Factory emergency access door positions 8474 | -6/Lower Caves | Discovered new exit (range 6) 8484 | -6/Lower Caves | Entered another Lower Caves area 8493 | -6/Lower Caves | Discovered new exit (range 8) 8870 | -6/Lower Caves | Attracted the attention of an 0b10 outpost 8936 | -6/Lower Caves | Destroyed 7 combat bots 9773 | -6/Lower Caves | Identified exit to Zion 9778 | -6/Lower Caves | Entered a destroyed Warlord outpost 10426 | -6/Lower Caves | Entered Zion 10426 | -6/Zion | Accompanied by 2 allies 10540 | -6/Zion | Discovered new exit (range 16) 10920 | -6/Zion | Found Prototype Special Weapon 10920 | -6/Zion | Identified RU-N14's Throwing Claymores 10985 | -6/Zion | Learned location of Quarantine (-2) 11172 | -6/Zion | Learned Factory stockpile data 11187 | -6/Zion | Learned Factory non-interactive machine intel 11271 | -6/Zion | Received a visual enhancement algorithm 11273 | -6/Zion | Ran a visual enhancement algorithm 11398 | -6/Zion | Met Imprinter 11595 | -6/Zion | Found Prototype Device 11595 | -6/Zion | Identified Bomb Factory No. 2 11732 | -6/Zion | Found RU-N14's Throwing Claymores 11735 | -6/Zion | Found RU-N14's Throwing Claymores 11747 | -6/Zion | Found RU-N14's Throwing Claymores 12690 | -6/Zion | Discovered new exit (range 3) 12690 | -6/Zion | Saw the warning signs outside the Deep Caves entrance 12702 | -6/Zion | Entered Deep Caves 12702 | -6/Deep Caves | Accompanied by 2 allies 12704 | -6/Deep Caves | Met 5H-AD0 12944 | -6/Deep Caves | Z-Facility disabled 12975 | -6/Deep Caves | Attacked by Z-Imprinter 12994 | -6/Deep Caves | Allies destroyed Z-Imprinter 13242 | -6/Deep Caves | Thanked by 5H-AD0 13757 | -6/Deep Caves | Found Prototype Device 13757 | -6/Deep Caves | Identified Zio. Metafield Generator 13858 | -6/Deep Caves | Found Prototype Protection 13858 | -6/Deep Caves | Identified Zio. Weapon Casing 13919 | -6/Deep Caves | Found Prototype Protection 13919 | -6/Deep Caves | Identified Zio. Heavy Carapace 15065 | -6/Deep Caves | Spotted AG-99374 16099 | -6/Deep Caves | Triggered Deep Caves wall 16099 | -6/Deep Caves | Spotted AS-95592 16099 | -6/Deep Caves | Spotted AS-88962 16099 | -6/Deep Caves | Destroyed AS-95592 16106 | -6/Deep Caves | Exposed GOLEM chamber 16112 | -6/Deep Caves | Spotted AG-51097 16113 | -6/Deep Caves | Core integrity fell below 50% 16131 | -6/Deep Caves | Destroyed 33 combat bots 16154 | -6/Deep Caves | Lost 3 parts (1p2u) 16236 | -6/Deep Caves | Core integrity fell below 20% 16251 | -6/Deep Caves | Destroyed self with Mini Grenade Launcher Last Messages --------------- 16227_ Surveybot 24 destroyed. 16227_ Survey Way Station disabled. 16230_ Destroyed Prototype Device. 16230_ RU-N14's Throwing Claymores expended. 16230_ Destroyed Prototype Device. 16231_ AG-51097 GOLEM Unit beginning Prototype Device integration. 16232_ The unstable cave ceiling collapses. 16238_ Lgt. Angular Momentum Engine destroyed. 16242_ The unstable cave ceiling collapses. 16245_ Lightning Gun destroyed. 16248_ AG-51097 Prototype Device integration complete. 16248_ The unstable cave ceiling collapses. 16249_ AG-51097 GOLEM Unit beginning Prototype Device integration. 16250_ AG-51097 Prototype Device integration complete. 16251_ The unstable cave ceiling collapses. 16251_ Destroyed Prototype Energy Cannon. Map ----- +----------------------------------------------------+ | ??????????????????????????????????##?????# | | ??????????????????????????????????# #????## | | ???????????????????????????????????# #????### | | ????????????????????????????????????# #?????## / | | ?????????????????????????????????????# #????# / | | ??????????????????????????????????????# ##### | | ???????????????????????????????????#####"# # | | ???????????????????????????????????# " | | ???????????????????????????????????#### #*!# | | ????????????????????????????????????????##### | | ??????????????????????? #???????????????## | | ???????????????????### #??????????????# | | ?????????????????? # #??????????????## | | ???????????????? #????????????#### | | ???????????????## # #???????????## # | | ???????????????# # #???????????# | | ???????????????? # #?????####### | | ????????????????# #?????# " | | ????????????????# #?????######## | | ???####?????????# ???????????#""# | | #### ##????????## ######?????# ## | | #????????# G #????# ##?## | | ###??????# #???# #????# | | ""#??????## ## #??# #??##### | | ##???????# # ## #?# #??## ## | | ##???????# ###@ ### ## #???# #" | | ####????## ##?#####?# ###????# # ! | | ##????# ##????????# #?????## | | """ #" ##???# #??###????# ####### | | ####### ##### ####"#????# | | ?????## ^ ## #????# | | ?????# ## "" #??### | | ?????# ## """ ### #?## ####### | | ?????# ^ " #?# #?# ####??# | | ?????# #?# ### #??### | | ?????## #### ###?# "## #????# | | ??????#######?# ###???# ## #????## | | ??????????????# #????## #####?????# | | ??????????????# ###### ##?????????# | | ??????????????# ##??????????## | | ??????????????# #####????????????# | | ??????????????#############????????????????## ### | | ????????????????????????????????????????????####?? | | | | | | | | | | | | | | | +----------------------------------------------------+ Best States ------------- Heat Dissipation 91 Energy Generation 18 Energy Capacity 290 Matter Stores 300 Matter Capacity 300 Sight Range 16 Robot Scan Range 20 Terrain Scan Range 20 Terrain Scan Density 210 Armor Coverage 1200 Weapon Shielding 100 Evasion (%) 40 Target Analysis 5 Recoil Reduction 5 Item Schematics ----------------- Exp. Sensor Array | -6/Factory | Scanalyzed Adv. Field Recycling Unit | -6/Zion | Archive Phase Shifter | -6/Zion | Archive Lgt. Fission Core | -6/Zion | Archive Enh. Gauss Cannon | -6/Zion | Archive Angular Momentum Engine | -6/Zion | Archive Wave Gun | -6/Zion | Archive Imp. Target Analyzer | -6/Zion | Archive Lrn. Proton Cannon | -6/Zion | Archive Energy Well | -6/Zion | Archive Adv. Transmission Jammer | -6/Zion | Archive Phase Gun | -6/Zion | Archive Imp. Focal Shield | -6/Zion | Archive Focal Shield | -6/Zion | Archive Adv. Terrain Scanner | -6/Zion | Archive Imp. Arc Projector | -6/Zion | Archive Robot Schematics ------------------ A-02 Transporter | -6/Zion | Archive H-55 Commando | -6/Zion | Archive Fabricated ------------ Nothing Repaired ---------- Nothing Alien Tech Used ----------------- None Achievements -------------- Killing Spree Challenges ------------ None Game ------ Seed ReflexColdPlating Manual? 0 Play Time 02:18:25 Cumulative 232.9 hours Start 2025.05.21 @ 14:44:33 End 2025.05.22 @ 01:09:41 Sessions 2 Manual Loads 0 Difficulty Rogue Special Mode None Game No. 126 Rogue 118 Adventurer 8 Explorer 0 Win Type - Total 8 Types 4/0/2/1/0/0/0/0/0/1 Lore% 82 Gallery% 78 Achievement% 66 Wizard Run 0 Options --------- Layout 2 ASCII 0 Keyboard 1 Movement Numpad Keybinds 1 Fullscreen 1 Font 48/Smallcaps Map View 50x44 Zoom Use 0% Tactical HUD 1 Map Filters NONE Filters NONE Steam 1 RUN: a55ed3f4-2db3-4211-a088-e08b5ff18f33